bitfinex-derivatives/quotes_SOLF0:USTF0_20260105
["timestamp","ask_amount","ask_price","bid_price","bid_amount"]
[1767581529500,1.47906198,136.86,136.78,0.5691762]
[1767581530392,1.47906198,136.84,136.78,0.5691762]
[1767581530596,1.47906198,136.82,136.75,0.5691762]
[1767581530802,0.05241462,136.83,136.75,0.5691762]
[1767581530997,1.47906198,136.84,136.75,0.5691762]
[1767581531601,8.05926198,136.84,136.76,0.5691762]
[1767581531801,8.05926198,136.84,136.78,0.0514122]
[1767581533495,8.05926198,136.84,136.78,0.6205884]
[1767581533496,1.47906198,136.84,136.78,0.6205884]
[1767581533891,8.05816198,136.86,136.78,0.6205884]
[1767581535298,6.5797,136.85,136.78,0.6205884]
[1767581535604,1.47906198,136.84,136.78,0.0514122]
[1767581536599,6.5806,136.83,136.78,0.0514122]
[1767581537801,8.06016198,136.82,136.75,0.5691762]
[1767581538005,8.10998265,136.82,136.75,0.5691762]
[1767581538897,6.63092067,136.82,136.75,0.5691762]
[1767581540698,0.04982067,136.82,136.75,0.5691762]
[1767581548406,0.04982067,136.82,136.76,0.5691762]
[1767581560614,0.04982067,136.82,136.77,0.46641674]
[1767581561911,0.00118995,136.82,136.77,0.46641674]
[1767581563717,0.00118995,136.82,136.78,0.51599755]
[1767581565423,6.5788,136.87,136.78,0.51599755]
[1767581565612,173.26501184,136.88,136.78,0.51599755]
[1767581565925,173.26501184,136.88,136.78,0.46641674]
[1767581566625,173.26501184,136.88,136.8,0.46641674]
[1767581566921,173.26501184,136.88,136.79,6.5821]
[1767581566922,173.26501184,136.88,136.82,0.51412993]
[1767581580435,173.26501184,136.88,136.82,0.04771319]
[1767581581631,179.84321184,136.88,136.82,0.04771319]
[1767581582140,177.03501855,136.88,136.79,0.46463359]
[1767581582333,0.04834585,136.86,136.79,0.46463359]
[1767581582636,86.34,136.85,136.79,0.46463359]
[1767581587535,0.04834585,136.86,136.79,0.46463359]
[1767581588542,0.04834585,136.86,136.8,0.46463359]
[1767581591545,0.43487407,136.92,136.84,0.05720447]
[1767581591749,0.43487407,136.9,136.82,0.1152268]
[1767581592037,0.43487407,136.9,136.82,0.06021801]
[1767581592841,0.43487407,136.9,136.85,0.04992573]
[1767581601949,0.43487407,136.89,136.82,0.06021801]
[1767581602148,0.48581838,136.89,136.82,0.06021801]
[1767581605449,0.43487407,136.88,136.81,6.5811]
[1767581605849,0.43487407,136.88,136.8,0.1466769]
[1767581606244,0.48987727,136.86,136.8,0.1466769]
[1767581606445,0.48987727,136.86,136.79,6.5821]
[1767581607148,0.48987727,136.86,136.79,6.73409605]
[1767581608153,0.48987727,136.86,136.8,0.15461198]
[1767581609952,0.43487407,136.91,136.83,0.15975811]
[1767581611259,0.43487407,136.91,136.86,0.04653613]
[1767581611558,1.91252711,136.91,136.86,0.04653613]
[1767581612253,0.43487407,136.91,136.86,0.04653613]
[1767581612450,1.91252711,136.91,136.86,0.04653613]
[1767581616462,0.43487407,136.91,136.86,0.04653613]
[1767581618067,0.46126571,136.9,136.86,0.04653613]
[1767581622571,1.93891875,136.9,136.86,0.04653613]
[1767581622879,0.46126571,136.89,136.86,0.04653613]
[1767581624682,0.46126571,136.91,136.86,0.04653613]
[1767581632978,0.46126571,136.9,136.83,0.21231905]
[1767581633171,0.51058662,136.9,136.83,0.21231905]
[1767581634886,0.51058662,136.9,136.83,6.79251905]
[1767581636385,0.51058662,136.9,136.83,0.21231905]
[1767581636789,0.46126571,136.89,136.81,6.84925426]
[1767581637485,0.05129022,136.86,136.81,6.84925426]
[1767581637784,0.00136722,136.86,136.84,0.05071755]
[1767581647599,0.51033765,136.88,136.84,0.05071755]
[1767581650801,0.51033765,136.86,136.79,0.34349252]
[1767581653104,0.51033765,136.86,136.78,6.5825]
[1767581653105,0.51033765,136.84,136.77,0.34677539]
[1767581653699,0.51033765,136.84,136.78,0.34838916]
[1767581654213,0.51033765,136.86,136.78,0.34838916]
[1767581655104,0.51033765,136.84,136.77,0.3499845]
[1767581659205,0.51033765,136.86,136.79,0.35619784]
[1767581660316,0.51033765,136.86,136.8,0.3577051]
[1767581660613,0.51033765,136.86,136.81,0.40532381]
[1767581660815,1.98799069,136.88,136.81,0.40532381]
[1767581662115,0.51033765,136.88,136.81,0.40532381]
[1767581663419,0.51033765,136.88,136.82,0.36211751]
[1767581664716,0.51033765,136.88,136.82,6.94281751]
[1767581667617,0.51033765,136.88,136.83,0.3677657]
[1767581667820,0.51033765,136.9,136.84,0.36913668]
[1767581668521,0.51033765,136.9,136.86,0.04955295]
[1767581670726,0.51004375,136.92,136.86,0.04955295]
[1767581672425,0.51004375,136.91,136.82,6.95729691]
[1767581672726,0.51004375,136.89,136.83,0.42614986]
[1767581673119,0.0499964,136.9,136.84,0.42754303]
[1767581674726,0.0499964,136.9,136.84,7.00724303]
[1767581675827,0.0499964,136.9,136.85,0.43294891]
[1767581676031,0.50635967,136.94,136.86,0.48517044]
[1767581677323,0.50635967,136.94,136.87,0.4342531]
[1767581678129,0.50635967,136.96,136.9,0.43555366]
[1767581678331,0.50635967,136.96,136.89,0.05274529]
[1767581679234,0.50635967,136.95,136.89,0.05274529]
[1767581681534,0.50635967,136.94,136.89,0.05274529]
[1767581682239,0.50635967,136.93,136.89,0.05274529]
[1767581683328,0.50635967,136.95,136.89,0.05274529]
[1767581687339,7.08115967,136.95,136.89,0.05274529]
[1767581687533,0.50635967,136.94,136.89,0.05274529]
[1767581688242,0.55378935,136.93,136.86,0.44559132]
[1767581690538,0.55378935,136.93,136.86,7.02439132]
[1767581690734,0.55378935,136.93,136.87,0.44968536]
[1767581692642,0.55378935,136.93,136.87,7.02798536]
[1767581693638,0.55378935,136.93,136.88,6.5778]
[1767581693947,0.04742968,136.93,136.88,7.0304211]
[1767581694138,0.04742968,136.93,136.89,0.4526211]
[1767581695047,0.04742968,136.93,136.88,6.5778]
[1767581695247,0.55378935,136.93,136.88,6.5778]
[1767581695450,0.55378935,136.93,136.88,7.03138469]
[1767581696140,0.55378935,136.93,136.88,6.5778]
[1767581697744,0.55378935,136.93,136.87,0.4545297]
[1767581700449,0.55378935,136.93,136.86,6.5787]
[1767581700939,0.54757783,136.92,136.82,0.45925431]
[1767581701742,0.04680415,136.88,136.82,0.45925431]
[1767581705046,0.59438198,136.88,136.82,0.45925431]
[1767581707434,0.59438198,136.88,136.8,0.46439443]
[1767581707845,0.54757783,136.88,136.8,0.46439443]
[1767581708045,0.54757783,136.88,136.8,7.04609443]
[1767581708243,0.05515187,136.85,136.8,7.04609443]
[1767581708444,0.00144764,136.85,136.81,0.46521824]
[1767581708640,0.00144764,136.85,136.83,0.04874359]
[1767581709645,0.54757783,136.88,136.83,0.04874359]
[1767581717558,0.54757783,136.88,136.79,7.05441927]
[1767581717857,0.54757783,136.86,136.79,7.05441927]
[1767581718252,0.54757783,136.86,136.79,0.47221927]
[1767581723755,7.12667783,136.86,136.79,0.47221927]
[1767581723973,0.54757783,136.85,136.79,0.47221927]
[1767581724466,0.54757783,136.85,136.77,0.5266779]
[1767581725167,0.54757783,136.84,136.75,0.52745979]
[1767581725657,0.54757783,136.83,136.76,0.52823297]
[1767581727065,0.54757783,136.85,136.77,0.52899626]
[1767581727772,0.54757783,136.85,136.79,0.52975813]
[1767581728865,0.54757783,136.85,136.77,0.53050361]
[1767581730575,0.54757783,136.85,136.77,2.00851054]
[1767581733377,0.54757783,136.85,136.77,0.53050361]
[1767581733674,0.54757783,136.85,136.77,2.00851054]
[1767581734266,0.54757783,136.85,136.77,8.59161054]
[1767581735476,0.54757783,136.85,136.78,0.52752696]
[1767581736471,0.52651521,136.84,136.77,8.06110693]
[1767581736671,0.52651521,136.84,136.76,0.53773637]
[1767581736871,1.47800693,136.83,136.76,0.53773637]
[1767581737079,0.52651521,136.82,136.76,0.53773637]
[1767581737762,0.52651521,136.84,136.77,0.53903861]
[1767581737971,0.52651521,136.84,136.78,0.58648049]
[1767581738270,86.36,136.87,136.78,0.58648049]
[1767581738577,0.52651521,136.86,136.78,8.64718742]
[1767581738773,0.52651521,136.86,136.78,8.59974554]
[1767581739464,0.52651521,136.86,136.81,0.05000179]
[1767581741477,0.52651521,136.85,136.81,0.05000179]
[1767581751989,6.5791,136.86,136.81,0.05000179]
[1767581751990,0.52651521,136.89,136.81,0.58951043]
[1767581752487,0.52651521,136.89,136.82,1.47800693]
[1767581752689,0.52651521,136.89,136.82,2.01751557]
[1767581753387,0.52651521,136.89,136.84,0.05446766]
[1767581764506,0.52631678,136.87,136.8,8.6095134]
[1767581765603,0.52631678,136.87,136.81,7.1315985]
[1767581765806,0.52631678,136.87,136.82,0.55077521]
[1767581767206,0.04788348,136.86,136.82,0.55077521]
[1767581767504,0.00193314,136.86,136.82,0.55077521]
[1767581769108,0.00193314,136.86,136.83,0.04906397]
[1767581771305,0.00193314,136.86,136.8,0.55261254]
[1767581771306,0.52824992,136.86,136.8,0.55261254]
[1767581773109,0.52824992,136.86,136.77,0.55332154]
[1767581773306,2.00625685,136.86,136.78,0.55332154]
[1767581773506,0.52631678,136.86,136.78,0.55332154]
[1767581774011,0.04694278,136.83,136.78,0.55332154]
[1767581774611,0.04694278,136.83,136.79,7.13576577]
[1767581776618,0.52631678,136.86,136.8,0.55435103]
[1767581780217,0.52631678,136.86,136.82,0.04684686]
[1767581782021,0.52631678,136.86,136.78,0.55629928]
[1767581782719,0.52631678,136.86,136.78,7.13899928]
[1767581783314,0.52631678,136.86,136.78,6.5827]
[1767581783521,0.05522658,136.83,136.79,0.55660859]
[1767581783817,0.00224167,136.83,136.81,0.05135237]
[1767581785617,0.52631678,136.86,136.81,0.05135237]
[1767581785825,1.47800693,136.87,136.81,0.6088789]
[1767581786411,0.52631678,136.88,136.81,0.6088789]
[1767581790125,0.52631678,136.88,136.82,0.55868311]
[1767581790427,86.36,136.9,136.83,0.55868311]
[1767581790428,86.88631678,136.9,136.83,0.55868311]
[1767581791227,0.5843897,136.89,136.85,0.05058072]
[1767581799132,0.5843897,136.89,136.81,0.56131078]
[1767581799825,0.55062866,136.88,136.81,0.56131078]
[1767581800032,0.55062866,136.87,136.79,0.57030014]
[1767581800527,0.55062866,136.85,136.77,7.15330014]
[1767581800720,0.55062866,136.84,136.77,0.57030014]
[1767581800920,0.55062866,136.84,136.75,7.15440014]
[1767581801518,0.55062866,136.84,136.76,0.57030014]
[1767581802618,0.55062866,136.84,136.77,0.57030014]
[1767581803518,0.04614723,136.82,136.77,0.57030014]
[1767581807834,0.0018182,136.82,136.77,0.57030014]
[1767581809236,0.55244686,136.82,136.75,0.57030014]
[1767581809530,0.0018182,136.82,136.75,0.57030014]
[1767581809937,0.0018182,136.82,136.77,0.62423284]
[1767581817037,0.0018182,136.82,136.78,0.57030014]
[1767581818538,0.0018182,136.82,136.78,7.15290014]
[1767581820036,86.89062866,136.85,136.79,0.57030014]
[1767581820539,0.55115105,136.87,136.8,0.53550809]
[1767581821438,0.55115105,136.87,136.82,0.05530603]
[1767581822143,0.55115105,136.89,136.82,0.59081412]
[1767581822541,0.55115105,136.89,136.82,0.53550809]
[1767581823042,0.55115105,136.89,136.84,0.05258843]
[1767581823435,86.91115105,136.91,136.84,0.58809652]
[1767581823643,0.55115105,136.9,136.84,0.05258843]
[1767581825242,0.55115105,136.89,136.84,0.05258843]
[1767581826844,0.55115105,136.88,136.8,0.53550809]
[1767581827344,0.60718737,136.88,136.8,0.53550809]
[1767581831646,6.63423632,136.88,136.8,0.53550809]
[1767581831847,0.55115105,136.87,136.8,0.53550809]
[1767581832341,0.55115105,136.89,136.82,0.53550809]
[1767581832744,102.2599,136.97,136.85,0.53550809]
[1767581832745,0.55115105,136.92,136.85,0.53550809]
[1767581833947,0.55115105,136.92,136.87,0.04698598]
[1767581836152,0.55115105,136.91,136.87,0.04698598]
[1767581846960,7.12615105,136.95,136.88,0.53550809]
[1767581847158,0.55115105,136.95,136.88,0.53550809]
[1767581847761,0.55115105,136.95,136.9,0.05144233]
[1767581852858,0.59524817,136.97,136.9,0.61347535]
[1767581853466,0.59524817,136.97,136.9,7.13893302]
[1767581853666,0.59524817,136.97,136.92,0.05573213]
[1767581858468,0.59524817,136.97,136.92,0.61187002]
[1767581858968,0.57474927,136.99,136.93,0.55613789]
[1767581859174,0.62585199,136.96,136.89,0.55613789]
[1767581859467,0.57474927,136.95,136.87,0.55613789]
[1767581859667,0.57474927,136.95,136.88,0.55613789]
[1767581859861,0.57474927,136.95,136.88,2.03118286]
[1767581860060,86.87474927,136.95,136.89,0.55613789]
[1767581860465,0.04661682,136.93,136.89,0.55613789]
[1767581861673,0.04661682,136.93,136.89,7.13353789]
[1767581864071,0.04661682,136.93,136.89,0.55613789]
[1767581865172,0.04661682,136.93,136.87,8.60938286]
[1767581866471,0.62136609,136.93,136.87,7.13433789]
[1767581869175,0.04661682,136.93,136.88,0.55613789]
[1767581869978,0.62136609,136.93,136.86,0.55613789]
[1767581871677,0.62136609,136.93,136.87,7.13443789]
[1767581872372,0.04661682,136.93,136.88,0.55613789]
[1767581874873,0.04661682,136.93,136.89,0.55613789]
[1767581889392,0.59646628,136.93,136.87,7.17807962]
[1767581890593,0.59646628,136.93,136.88,0.59967962]
[1767581894898,0.59646628,136.93,136.86,0.59967962]
[1767581895298,0.54984946,136.93,136.86,0.59967962]
[1767581895794,92.875,136.95,136.88,0.59967962]
[1767581895795,0.04930381,136.91,136.88,0.59967962]
[1767581895998,86.84984946,136.95,136.88,0.59967962]
[1767581896298,86.3,136.94,136.88,0.59967962]
[1767581896899,0.54984946,136.95,136.88,7.17737962]
[1767581897101,86.84984946,136.95,136.88,7.17737962]
[1767581898699,86.84984946,136.95,136.9,0.05053854]
[1767581899897,0.54984946,136.94,136.9,0.05053854]
[1767581904915,86.3,136.93,136.9,0.05053854]
[1767581905117,0.54984946,136.94,136.9,0.05053854]
[1767581905318,86.3,136.93,136.9,0.05053854]
[1767581906014,77.1658332,136.93,136.9,0.05053854]
[1767581915920,68.03188989,136.93,136.9,0.05053854]
[1767581916424,0.54984946,136.94,136.9,0.05053854]
[1767581916725,86.84984946,136.94,136.9,0.05053854]
[1767581918928,0.58012123,136.93,136.9,0.05053854]
[1767581921931,0.58012123,136.93,136.86,0.59372107]
[1767581922230,86.88012123,136.92,136.86,0.59372107]
[1767581922428,0.58012123,136.91,136.86,0.59372107]
[1767581923334,0.0514513,136.9,136.86,0.59372107]
[1767581926129,0.04131693,136.91,136.87,0.04724631]
[1767581927424,2.30644543,136.95,136.87,0.64096738]
[1767581927631,86.3,136.94,136.87,0.64096738]
[1767581928143,86.88012123,136.94,136.87,0.59372107]
[1767581928632,86.88012123,136.94,136.85,102.3431]
[1767581928633,0.58012123,136.94,136.89,0.04795304]
[1767581933239,0.58012123,136.96,136.9,0.59372107]
[1767581933439,86.3,136.95,136.9,0.59372107]
[1767581933636,86.88012123,136.95,136.9,0.59372107]
[1767581934025,86.88012123,136.95,136.91,0.04849982]
[1767581934737,0.58012123,136.94,136.91,0.04849982]
[1767581935141,86.3,136.95,136.91,0.04849982]
[1767581935339,86.88012123,136.95,136.91,0.04849982]
[1767581935846,0.58012123,136.97,136.91,0.64222089]
[1767581936045,86.88012123,136.99,136.91,0.64222089]
[1767581936237,0.58012123,136.98,136.91,0.64222089]
[1767581936437,0.58012123,136.98,136.91,0.59372107]
[1767581936738,0.58012123,136.98,136.91,7.17012107]
[1767581936943,0.58012123,136.98,136.93,0.04609125]
[1767581950155,0.56595499,136.97,136.93,0.04609125]
[1767581950358,0.61831459,136.97,136.89,7.14167347]
[1767581955959,0.61831459,136.97,136.9,0.56447347]
[1767581960661,0.56595499,136.96,136.9,0.56447347]
[1767581960858,0.56595499,136.96,136.87,7.14287347]
[1767581961650,0.05110975,136.93,136.87,7.14287347]
[1767581961855,0.61706474,136.93,136.87,7.14287347]
[1767581964358,0.61706474,136.93,136.87,0.56447347]
[1767581966663,7.19286474,136.93,136.87,0.56447347]
[1767581968668,0.56595499,136.92,136.87,0.56447347]
[1767581983978,0.56595499,136.92,136.85,7.19014785]
[1767581984978,0.04784243,136.9,136.86,0.61094785]
[1767581986673,0.67533432,136.9,136.84,0.61094785]
[1767581986876,86.92749189,136.93,136.87,0.66226297]
[1767581987272,86.92749189,136.93,136.87,0.61094785]
[1767581988278,86.92749189,136.93,136.89,0.05094861]
[1767581988575,86.92749189,136.93,136.85,0.61094785]
[1767581988576,0.62749189,136.92,136.85,0.61094785]
[1767581988776,2.10406757,136.92,136.85,0.61094785]
[1767581988980,2.15337023,136.92,136.85,0.61094785]
[1767581989485,0.62749189,136.91,136.83,0.61094785]
[1767581990385,0.0494723,136.88,136.83,0.61094785]
[1767581991177,86.92749189,136.92,136.84,0.65843589]
[1767581991385,0.62749189,136.91,136.84,0.65843589]
[1767581992580,0.62749189,136.91,136.85,0.61094785]
[1767582003288,0.60571109,136.95,136.88,0.6176202]
[1767582003493,0.60571109,136.94,136.88,0.6176202]
[1767582003687,0.60571109,136.91,136.85,0.6176202]
[1767582003995,0.60571109,136.89,136.83,0.6176202]
[1767582004698,0.60571109,136.89,136.85,0.0498041]
[1767582005398,0.60571109,136.87,136.82,0.6176202]
[1767582005806,0.05320003,136.88,136.82,0.6176202]
[1767582006001,0.65891112,136.88,136.82,0.6176202]
[1767582009604,0.05320003,136.88,136.83,0.6176202]
[1767582013811,2.1354868,136.88,136.83,0.6176202]
[1767582015007,0.65891112,136.88,136.83,0.6176202]
[1767582015207,2.1354868,136.88,136.83,0.6176202]
[1767582016312,0.65891112,136.88,136.83,0.6176202]
[1767582016914,0.05320003,136.88,136.83,0.6176202]
[1767582018716,1.47657568,136.91,136.84,0.6176202]
[1767582018918,0.60571109,136.92,136.85,0.6176202]
[1767582020205,0.60571109,136.92,136.87,0.0476304]
[1767582020407,1.47657568,136.91,136.87,0.0476304]
[1767582020712,2.08228677,136.91,136.87,0.0476304]
[1767582021109,0.60571109,136.9,136.87,0.0476304]
[1767582021413,0.60571109,136.9,136.83,7.1977202]
[1767582021713,0.60571109,136.88,136.81,7.1986202]
[1767582022014,0.60571109,136.88,136.82,0.6176202]
[1767582022814,0.05289443,136.86,136.82,0.6176202]
[1767582023012,0.00192449,136.86,136.82,0.6176202]
[1767582023212,0.00192449,136.86,136.84,0.05261403]
[1767582027911,0.60763558,136.86,136.8,0.6176202]
[1767582031719,0.60763558,136.86,136.8,7.1993202]
[1767582031917,0.60763558,136.86,136.8,0.6176202]
[1767582036720,0.60763558,136.86,136.79,6.5821]
[1767582036921,0.60763558,136.86,136.79,7.23466257]
[1767582037122,0.60763558,136.86,136.8,0.65256257]
[1767582039529,0.60763558,136.86,136.81,0.65256257]
[1767582039828,0.00192449,136.86,136.81,0.65256257]
[1767582041625,0.00192449,136.86,136.81,7.23386257]
[1767582044931,0.00192449,136.86,136.82,0.65256257]
[1767582048127,0.00192449,136.86,136.8,0.65256257]
[1767582048734,0.00192449,136.86,136.77,2.30922607]
[1767582048735,0.59571873,136.85,136.78,0.65256257]
[1767582048925,0.59571873,136.85,136.77,0.65256257]
[1767582050335,0.59571873,136.84,136.77,0.65256257]
[1767582050539,86.93571873,136.83,136.77,0.65256257]
[1767582050730,0.04760484,136.82,136.77,0.65256257]
[1767582050930,0.64332357,136.82,136.77,0.65256257]
[1767582051126,0.04760484,136.82,136.77,0.65256257]
[1767582054638,0.04760484,136.82,136.76,0.65256257]
[1767582054838,0.04760484,136.82,136.77,0.65256257]
[1767582055733,0.04760484,136.82,136.78,0.65256257]
[1767582056752,0.64332357,136.82,136.74,0.65256257]
[1767582056934,0.59571873,136.81,136.74,0.65256257]
[1767582057542,0.59571873,136.81,136.69,104.77232607]
[1767582057543,0.59571873,136.79,136.7,0.65256257]
[1767582057741,0.59571873,136.77,136.7,0.65256257]
[1767582058436,0.04759176,136.75,136.7,0.65256257]
[1767582061241,0.69242437,136.75,136.68,0.64596005]
[1767582061744,87.07242437,136.75,136.68,0.64596005]
[1767582062242,0.69242437,136.75,136.68,0.64596005]
[1767582067052,0.64483261,136.74,136.66,0.64596005]
[1767582067243,86.4,136.73,136.66,0.64596005]
[1767582067953,0.04752064,136.71,136.66,0.64596005]
[1767582068651,0.04752064,136.71,136.67,0.64596005]
[1767582069242,0.64483261,136.74,136.67,0.64596005]
[1767582070948,0.64483261,136.74,136.68,0.64596005]
[1767582071144,0.64483261,136.77,136.68,0.64596005]
[1767582071346,86.4,136.76,136.68,0.64596005]
[1767582071546,87.04483261,136.76,136.68,0.64596005]
[1767582072548,87.04483261,136.76,136.69,0.64596005]
[1767582072946,7.22793261,136.78,136.69,0.64596005]
[1767582073149,0.64483261,136.78,136.71,0.64596005]
[1767582073855,0.64483261,136.78,136.73,0.04972274]
[1767582075545,87.04483261,136.8,136.73,0.69568279]
[1767582075745,0.64483261,136.8,136.74,0.64596005]
[1767582075944,0.64483261,136.84,136.74,0.64596005]
[1767582076142,0.64483261,136.82,136.74,0.64596005]
[1767582077655,0.64483261,136.82,136.75,0.64596005]
[1767582079163,0.64483261,136.82,136.73,0.64596005]
[1767582079645,0.04758246,136.79,136.73,0.64596005]
[1767582079849,0.69241507,136.79,136.73,0.64596005]
[1767582082862,0.69241507,136.79,136.71,7.23186005]
[1767582084170,0.64483261,136.78,136.71,0.64596005]
[1767582084365,0.64483261,136.78,136.69,93.0069]
[1767582084366,0.64483261,136.77,136.69,7.23286005]
[1767582085055,0.04848382,136.74,136.69,7.23286005]
[1767582085655,0.04848382,136.74,136.71,0.64596005]
[1767582085855,86.4,136.78,136.71,0.64596005]
[1767582086160,87.04483261,136.78,136.71,0.64596005]
[1767582087662,0.64483261,136.78,136.71,0.64596005]
[1767582088761,0.64483261,136.78,136.73,0.04883219]
[1767582094462,86.4,136.79,136.73,0.67697452]
[1767582094860,87.04058835,136.79,136.73,0.67697452]
[1767582095063,0.64058835,136.78,136.73,0.67697452]
[1767582095966,86.4,136.81,136.73,0.67697452]
[1767582096168,0.6418636,136.82,136.74,0.62125921]
[1767582096466,0.6418636,136.8,136.73,0.6700914]
[1767582096661,0.6418636,136.8,136.73,0.62125921]
[1767582097964,0.6418636,136.8,136.74,0.62125921]
[1767582099065,87.0418636,136.82,136.75,0.62125921]
[1767582099264,0.6418636,136.84,136.75,0.62125921]
[1767582099464,87.0418636,136.84,136.76,0.62125921]
[1767582099664,87.0418636,136.84,136.77,0.66742337]
[1767582100369,87.0418636,136.84,136.78,0.62125921]
[1767582100864,0.6418636,136.86,136.8,0.62125921]
[1767582101568,0.6418636,136.86,136.8,7.20265921]
[1767582101759,86.4,136.87,136.81,0.62125921]
[1767582102367,0.6418636,136.86,136.79,2.0992773]
[1767582102570,0.6418636,136.86,136.79,0.62125921]
[1767582102865,0.6418636,136.86,136.83,0.04770255]
[1767582103055,0.6418636,136.86,136.79,0.62125921]
[1767582104565,0.6418636,136.86,136.8,0.62125921]
[1767582105162,0.05270149,136.84,136.8,0.62125921]
[1767582108579,0.05270149,136.84,136.81,0.62125921]
[1767582108778,86.4,136.87,136.81,0.62125921]
[1767582109075,86.4,136.87,136.81,0.67621989]
[1767582109266,87.0418636,136.87,136.81,0.67621989]
[1767582111275,0.6418636,136.87,136.81,0.67621989]
[1767582113471,8.69698169,136.9,136.82,0.62125921]
[1767582113669,95.05698169,136.9,136.82,0.62125921]
[1767582113866,88.47988169,136.9,136.83,0.62125921]
[1767582114472,88.47988169,136.9,136.85,0.05591774]
[1767582116275,0.6418636,136.89,136.85,0.05591774]
[1767582116475,2.11988169,136.91,136.83,0.62125921]
[1767582116667,0.05152104,136.89,136.83,0.62125921]
[1767582117377,0.69338464,136.89,136.81,2.0992773]
[1767582117582,0.69338464,136.89,136.82,0.62125921]
[1767582117782,0.6418636,136.89,136.82,0.62125921]
[1767582118175,0.04718577,136.87,136.82,0.62125921]
[1767582119281,0.04718577,136.87,136.82,7.20195921]
[1767582120178,0.04718577,136.87,136.83,7.20145921]
[1767582120380,88.47988169,136.91,136.84,0.62125921]
[1767582120979,0.60679893,136.9,136.84,0.62125921]
[1767582121178,0.60679893,136.92,136.85,0.61464237]
[1767582121697,0.60679893,136.92,136.87,0.04634591]
[1767582122785,0.60679893,136.91,136.87,0.04634591]
[1767582123978,0.60679893,136.91,136.83,7.19504237]
[1767582124382,0.04900374,136.9,136.83,7.19504237]
[1767582125292,0.04900374,136.9,136.84,0.61464237]
[1767582127188,0.04900374,136.9,136.84,7.19424237]
[1767582127386,0.04900374,136.9,136.85,0.61464237]
[1767582128593,0.04900374,136.9,136.85,7.19384237]
[1767582129093,0.04900374,136.9,136.85,0.61464237]
[1767582132209,0.04900374,136.9,136.86,0.61464237]
[1767582135304,0.04900374,136.9,136.85,6.5792]
[1767582135793,0.60679893,136.89,136.83,7.19484237]
[1767582136194,0.60679893,136.89,136.83,0.61464237]
[1767582137604,0.04900374,136.9,136.83,0.61464237]
[1767582138296,0.04900374,136.9,136.85,0.61464237]
[1767582139502,0.04900374,136.9,136.86,0.61464237]
[1767582140698,0.04900374,136.9,136.86,7.19344237]
[1767582141509,0.60679893,136.93,136.86,7.19344237]
[1767582141807,0.60679893,136.93,136.87,0.05202628]
[1767582143109,0.60679893,136.93,136.87,0.66666865]
[1767582146319,0.60679893,136.94,136.87,7.24496865]
[1767582146625,0.60679893,136.94,136.87,0.66666865]
[1767582146923,0.60679893,136.92,136.87,0.05202628]
[1767582147517,0.60679893,136.9,136.87,0.05202628]
[1767582147823,0.60679893,136.9,136.83,7.19484237]
[1767582149124,0.05587659,136.88,136.83,7.19484237]
[1767582149324,0.60679893,136.9,136.83,7.19484237]
[1767582149525,0.60679893,136.9,136.85,0.05363884]
[1767582152728,0.59655858,136.88,136.85,0.05363884]
[1767582153327,88.39457667,136.91,136.85,0.05363884]
[1767582153823,88.39457667,136.91,136.83,7.19358475]
[1767582154222,88.39457667,136.91,136.87,0.05232818]
[1767582154431,0.59655858,136.9,136.87,0.05232818]
[1767582155732,0.64507044,136.9,136.83,0.61328475]
[1767582156622,0.64507044,136.9,136.81,39.7441201]
[1767582156821,0.60450948,136.88,136.81,0.58097508]
[1767582157529,0.05437287,136.86,136.81,0.58097508]
[1767582158331,88.40252757,136.9,136.82,0.58097508]
[1767582158532,88.40252757,136.9,136.82,0.63074901]
[1767582159034,0.60450948,136.89,136.82,0.63074901]
[1767582159634,0.60450948,136.89,136.83,6.5802]
[1767582160131,86.32,136.9,136.85,0.58097508]
[1767582160935,86.32,136.9,136.86,0.05610028]
[1767582163631,77.18406401,136.9,136.86,0.05610028]
[1767582163832,0.60450948,136.94,136.86,0.63707536]
[1767582164034,0.60450948,136.93,136.86,0.63707536]
[1767582164537,0.60450948,136.93,136.86,7.21567536]
[1767582165036,0.60450948,136.93,136.86,0.63707536]
[1767582165630,86.32,136.94,136.87,0.58097508]
[1767582166127,0.60450948,136.96,136.89,6.5773]
[1767582166327,86.92450948,136.97,136.9,0.58097508]
[1767582166531,0.60450948,136.96,136.89,0.05593012]
[1767582167037,0.60450948,136.96,136.86,7.15967508]
[1767582167725,0.60450948,136.96,136.87,0.58097508]
[1767582168334,0.60450948,136.95,136.87,7.15927508]
[1767582168634,0.05392097,136.93,136.87,7.15927508]
[1767582172838,0.05392097,136.93,136.88,0.58097508]
[1767582177040,0.05392097,136.93,136.87,6.5783]
[1767582177041,0.65843045,136.93,136.85,0.58097508]
[1767582178543,0.65843045,136.93,136.86,6.5788]
[1767582181053,0.65843045,136.93,136.86,7.1803849]
[1767582181352,0.05392097,136.93,136.87,0.6015849]
[1767582181643,0.65911356,136.93,136.86,6.5788]
[1767582181848,0.65911356,136.93,136.86,7.1803849]
[1767582185656,0.05392097,136.93,136.88,0.6015849]
[1767582186157,0.60519259,136.95,136.88,0.6015849]
[1767582186551,0.60519259,136.95,136.88,7.1794849]